bitfinex-derivatives/quotes_BTCF0:USTF0_20210108
["timestamp","ask_amount","ask_price","bid_price","bid_amount"]
[1610119334148,0.13632608,40997.0,40983.0,0.15972273]
[1610119334347,3.5781,41054.0,40983.0,0.15972273]
[1610119334750,0.00254138,41062.0,40983.0,0.15972273]
[1610119334949,0.00254186,41064.0,40987.0,2.78]
[1610119335150,0.00029774,41061.0,40987.0,2.78]
[1610119335349,0.12681,41061.0,40988.0,0.02338827]
[1610119335654,0.00029771,41060.0,40988.0,0.02338827]
[1610119335950,0.00029771,41060.0,41029.0,0.13632608]
[1610119336150,0.00029771,41060.0,41030.0,0.00024983]
[1610119336450,0.12681,41061.0,41018.0,0.00024983]
[1610119337852,0.13632608,41019.0,41018.0,0.00024983]
[1610119338054,0.26010608,41019.0,41018.0,0.00024983]
[1610119338956,0.12378,41019.0,41018.0,0.00024983]
[1610119340357,0.12378,41019.0,41018.0,1.00024983]
[1610119341373,1.0,41054.0,41018.0,1.00024983]
[1610119341760,1.0,41054.0,41046.0,0.13632608]
[1610119342258,0.19381902,41060.0,41047.0,0.00024968]
[1610119342858,0.19381902,41060.0,41025.0,3.2977]
[1610119343058,0.19381902,41060.0,41026.0,0.00024968]
[1610119343759,0.19381902,41060.0,41051.0,0.13632608]
[1610119344159,0.19381902,41060.0,41052.0,0.00024958]
[1610119345662,0.19381902,41060.0,41051.0,0.13632608]
[1610119345861,0.13632608,41059.0,41058.0,0.13632608]
[1610119346262,0.19381902,41060.0,41058.0,6.13632608]
[1610119347464,0.12681,41061.0,41059.0,1.5]
[1610119347666,1.0,41111.0,41059.0,1.5]
[1610119347962,1.0,41111.0,41075.0,2.909]
[1610119348364,0.13632608,41119.0,41075.0,2.909]
[1610119348965,0.00254602,41162.0,41076.0,1.5]
[1610119349164,0.00254602,41162.0,41099.0,1.0]
[1610119349364,0.00255347,41179.0,41099.0,1.0]
[1610119349766,0.3195,41227.0,41099.0,1.0]
[1610119349767,0.13632608,41136.0,41099.0,1.0]
[1610119349966,0.25619608,41136.0,41100.0,0.00024906]
[1610119350166,0.25619608,41136.0,41099.0,1.0]
[1610119350467,0.25619608,41136.0,41100.0,0.00024908]
[1610119350867,0.25619608,41136.0,41099.0,1.0]
[1610119351369,0.11987,41136.0,41098.0,2.7941]
[1610119351766,0.11987,41136.0,41135.0,0.13632608]
[1610119352567,0.11987,41136.0,41098.0,2.7941]
[1610119352769,0.11987,41136.0,41085.0,0.09851]
[1610119353771,0.11987,41136.0,41135.0,0.13632608]
[1610119354373,0.11987,41136.0,41122.0,3.1843]
[1610119354972,3.0072,41204.0,41122.0,3.1843]
[1610119355173,0.11876,41136.0,41122.0,3.1843]
[1610119355774,0.11876,41136.0,41135.0,0.13632608]
[1610119357376,0.11876,41136.0,41135.0,6.0]
[1610119357574,0.11876,41136.0,41135.0,5.5069]
[1610119357782,0.25508608,41136.0,41135.0,5.5069]
[1610119358080,0.25508608,41136.0,41096.0,3.7144]
[1610119358378,1.25508608,41136.0,41096.0,3.7144]
[1610119359877,1.11876,41136.0,41116.0,0.13632608]
[1610119360180,0.11876,41136.0,41116.0,0.13632608]
[1610119360377,0.1569,41181.0,41116.0,0.13632608]
[1610119360578,0.01466191,41208.0,41116.0,0.13632608]
[1610119360876,0.02460074,41205.0,41116.0,0.13632608]
[1610119361076,0.14212074,41205.0,41116.0,0.13632608]
[1610119361276,0.0002969,41179.0,41116.0,0.13632608]
[1610119361477,0.09129,41179.0,41113.0,3.8295]
[1610119361676,0.0002969,41178.0,41113.0,3.8295]
[1610119361877,0.0002969,41178.0,41125.0,0.13632608]
[1610119362680,0.0002969,41178.0,41074.0,0.09726]
[1610119363679,0.0002969,41178.0,41094.0,3.2939]
[1610119363881,0.13632608,41138.0,41137.0,0.13632608]
[1610119364079,0.23730608,41138.0,41094.0,3.2939]
[1610119364781,0.23936423,41136.0,41094.0,3.2939]
[1610119365781,0.23936423,41136.0,41135.0,0.13632608]
[1610119366283,0.23936423,41136.0,41094.0,3.2939]
[1610119366584,0.23936423,41136.0,41089.0,0.09749]
[1610119367381,0.23936423,41136.0,41082.0,3.9252]
[1610119367883,0.23936423,41136.0,41105.0,0.13632608]
[1610119368884,0.23936423,41136.0,41110.0,3.5413]
[1610119369986,0.23936423,41136.0,41135.0,0.13632608]
[1610119373190,0.23936423,41136.0,41135.0,0.62752608]
[1610119373389,0.10098,41138.0,41135.0,0.62752608]
[1610119373390,0.09129,41179.0,41135.0,0.13632608]
[1610119373590,0.05933298,41224.0,41137.0,2.811]
[1610119373792,0.13632608,41217.0,41204.0,0.13632608]
[1610119373994,0.13632608,41217.0,41136.0,1.60794]
[1610119374194,0.0245397,41204.0,41167.0,4.0532]
[1610119374390,0.12144,41215.0,41136.0,0.10794]
[1610119374391,0.12144,41215.0,41137.0,1.5]
[1610119374591,0.12144,41215.0,41172.0,3.6184]
[1610119375893,0.12144,41215.0,41209.0,0.13632608]
[1610119377897,0.12144,41215.0,41214.0,0.13632608]
[1610119379196,1.0,41250.0,41214.0,0.13632608]
[1610119379696,0.00029636,41249.0,41214.0,0.13632608]
[1610119379996,0.08063636,41249.0,41214.0,0.13632608]
[1610119380398,0.00029636,41248.0,41214.0,0.13632608]
[1610119380699,0.00029636,41248.0,41179.0,0.12812]
[1610119381799,0.00029636,41248.0,41197.0,0.13632608]
[1610119382301,1.0,41230.0,41197.0,0.13632608]
[1610119382601,1.08053,41230.0,41197.0,0.13632608]
[1610119382804,0.0002964,41229.0,41197.0,0.13632608]
[1610119383804,0.0002964,41229.0,41209.0,0.13632608]
[1610119384805,0.0002964,41229.0,41172.0,3.6184]
[1610119385005,0.0002964,41229.0,41170.0,0.10159]
[1610119385207,0.0002964,41229.0,41159.0,0.09141]
[1610119385408,0.0002964,41229.0,41157.0,2.9887]
[1610119385608,0.15655752,41215.0,41157.0,2.9887]
[1610119385807,0.27686752,41215.0,41188.0,0.13632608]
[1610119387410,0.00029647,41214.0,41188.0,0.13632608]
[1610119387811,0.13632608,41197.0,41165.0,0.08964]
[1610119388010,0.25258608,41197.0,41165.0,0.08964]
[1610119389913,0.11626,41197.0,41191.0,0.13632608]
[1610119390113,0.11626,41197.0,41157.0,2.9887]
[1610119390416,0.11626,41197.0,41148.0,0.09644]
[1610119390614,0.11626,41197.0,41134.0,3.0109]
[1610119391415,0.11626,41197.0,41086.0,2.39679036]
[1610119391616,0.00029654,41196.0,41086.0,2.39679036]
[1610119391816,0.00029654,41196.0,41084.0,3.3012]
[1610119391817,0.13632608,41154.0,41142.0,0.13632608]
[1610119392015,0.26286608,41154.0,41142.0,0.13632608]
[1610119393020,0.12654,41154.0,41142.0,0.13632608]
[1610119393819,0.12654,41154.0,41153.0,0.13632608]
[1610119394221,0.12654,41154.0,41123.0,3.2809]
[1610119395825,0.13632608,41153.0,41152.0,0.13632608]
[1610119396027,0.13632608,41153.0,41123.0,3.2809]
[1610119396230,0.13632608,41153.0,41112.0,0.12272]
[1610119396523,0.13632608,41153.0,41094.0,2.8098]
[1610119397925,0.13632608,41130.0,41123.0,0.13632608]
[1610119398126,0.23299608,41130.0,41123.0,0.13632608]
[1610119399126,0.23299608,41130.0,41083.0,3.0745]
[1610119399926,0.13632608,41104.0,41100.0,0.13632608]
[1610119400127,0.08065,41104.0,41100.0,0.13632608]
[1610119401729,0.09667,41130.0,41100.0,0.13632608]
[1610119401730,0.07835,41114.0,41100.0,0.13632608]
[1610119401931,0.07835,41114.0,41113.0,0.13632608]
[1610119404430,0.15185,41114.0,41113.0,0.13632608]
[1610119405729,0.07835,41114.0,41113.0,0.13632608]
[1610119406133,0.09667,41130.0,41113.0,0.13632608]
[1610119406332,0.2909,41174.0,41113.0,0.13632608]
[1610119406638,0.0739,41152.0,41113.0,0.13632608]
[1610119407333,0.2909,41174.0,41113.0,0.13632608]
[1610119407933,0.13632608,41166.0,41152.0,0.13632608]
[1610119408239,0.30744319,41153.0,41152.0,0.13632608]
[1610119408736,0.30744319,41153.0,41115.0,0.12021]
[1610119409042,0.23384319,41153.0,41105.0,2.7746]
[1610119409438,0.23384319,41153.0,41106.0,0.00025955]
[1610119409836,0.13632608,41146.0,41143.0,0.13632608]
[1610119410036,0.23384319,41153.0,41143.0,0.13632608]
[1610119411242,0.23384319,41153.0,41105.0,2.7746]
[1610119411740,0.23384319,41153.0,41110.0,0.00025952]
[1610119411940,0.13632608,41138.0,41118.0,0.13632608]
[1610119412244,1.0738,41137.0,41118.0,0.13632608]
[1610119412740,1.0738,41137.0,41091.0,2.46203204]
[1610119412940,1.0738,41137.0,41106.0,0.00025959]
[1610119413142,1.0,41137.0,41092.0,0.00025961]
[1610119413542,1.0,41137.0,41085.0,2.60685745]
[1610119413543,1.0,41137.0,41090.0,0.00025961]
[1610119413842,1.0,41137.0,41093.0,0.00025961]
[1610119414041,1.0,41137.0,41136.0,0.13632608]
[1610119414241,0.0724,41137.0,41136.0,0.13632608]
[1610119414442,0.1262,41138.0,41136.0,0.13632608]
[1610119416142,0.1262,41138.0,41136.0,0.12932608]
[1610119416444,0.1262,41138.0,41112.0,2.9813]
[1610119416643,0.1262,41138.0,41093.0,2.46293503]
[1610119416942,0.1262,41138.0,41113.0,0.00025959]
[1610119417141,0.1262,41138.0,41102.0,3.5644]
[1610119417442,0.1262,41138.0,41086.0,2.60781356]
[1610119417443,0.09465,41138.0,41114.0,0.00025959]
[1610119417743,0.09465,41138.0,41103.0,0.00025959]
[1610119417943,0.13632608,41130.0,41115.0,0.00025959]
[1610119418243,0.13632608,41130.0,41104.0,0.00025961]
[1610119418442,0.13632608,41130.0,41114.0,0.00025961]
[1610119418643,0.13632608,41130.0,41105.0,0.00025964]
[1610119418946,0.13632608,41130.0,41115.0,0.00025968]
[1610119419351,0.13632608,41130.0,41079.0,0.02735175]
[1610119419549,0.13632608,41130.0,41072.0,2.60895648]
[1610119419550,0.13632608,41130.0,41075.0,0.02709507]
[1610119419847,3.8529,41115.0,41080.0,0.00025972]
[1610119420046,0.13632608,41081.0,41076.0,0.00025972]
[1610119420260,3.94646,41115.0,41080.0,0.00025974]
[1610119420449,0.1213,41081.0,41080.0,0.00025974]
[1610119420657,0.1213,41081.0,41077.0,0.00025977]
[1610119420848,0.1213,41081.0,41080.0,0.00025977]
[1610119421047,0.1213,41081.0,41078.0,0.00025977]
[1610119421347,0.1213,41081.0,41080.0,0.00025977]
[1610119421649,0.1213,41081.0,41049.0,2.60949375]
[1610119421650,0.1213,41081.0,41079.0,0.00025977]
[1610119421847,0.1213,41081.0,41080.0,0.00025977]
[1610119422449,0.1213,41081.0,41068.0,0.0002598]
[1610119422648,0.1213,41081.0,41041.0,2.60845438]
[1610119422649,0.1213,41081.0,41080.0,0.0002598]
[1610119422850,0.1213,41081.0,41041.0,2.60845438]
[1610119422851,0.1213,41081.0,41069.0,0.0002598]
[1610119423148,0.1213,41081.0,41080.0,0.0002598]
[1610119423448,0.1213,41081.0,41049.0,0.02736547]
[1610119423651,0.1213,41081.0,41080.0,0.0002598]
[1610119424060,5.0,41100.0,41080.0,0.13632608]
[1610119424253,0.09356,41115.0,41080.0,0.13658585]
[1610119424450,0.09356,41115.0,41081.0,0.00025971]
[1610119425050,3.5079,41141.0,41081.0,0.00025971]
[1610119425251,3.5079,41141.0,41081.0,0.02734253]
[1610119425649,3.5079,41141.0,41081.0,0.00025971]
[1610119425851,1.0,41142.0,41082.0,0.00025961]
[1610119426052,1.0,41142.0,41124.0,0.13632608]
[1610119426252,1.0,41148.0,41124.0,0.13632608]
[1610119426654,1.0,41148.0,41125.0,0.00025958]
[1610119427351,0.0723,41147.0,41125.0,0.00025958]
[1610119427953,0.0723,41147.0,41141.0,0.13632608]
[1610119428152,1.13632608,41155.0,41125.0,0.00025958]
[1610119428653,1.13632608,41155.0,41126.0,0.00025949]
[1610119429066,1.13632608,41155.0,41111.0,0.00025949]
[1610119429252,0.0732,41152.0,41127.0,0.00025949]
[1610119429454,1.13632608,41155.0,41112.0,0.00025952]
[1610119429752,1.13632608,41155.0,41128.0,0.00025952]
[1610119429952,1.0,41155.0,41138.0,0.13632608]
[1610119430155,1.0,41155.0,41113.0,0.00025952]
[1610119430352,1.0,41149.0,41129.0,0.00025952]
[1610119430554,0.0734,41148.0,41114.0,0.00025952]
[1610119430754,1.0,41149.0,41130.0,0.00025952]
[1610119431053,1.0,41149.0,41115.0,0.00025952]
[1610119431357,1.0,41149.0,41110.0,0.10928]
[1610119431358,1.0,41149.0,41111.0,0.00025954]
[1610119431556,0.0734,41148.0,41116.0,0.00025954]
[1610119431758,1.0,41149.0,41116.0,0.00025954]
[1610119431965,1.0,41149.0,41124.0,0.13632608]
[1610119432158,1.0,41145.0,41124.0,0.13632608]
[1610119432359,1.08382,41145.0,41125.0,0.00025954]
[1610119432961,0.0738,41144.0,41125.0,0.00025954]
[1610119433461,1.08382,41145.0,41125.0,0.00025954]
[1610119433960,1.08382,41145.0,41144.0,0.13632608]
[1610119434261,0.08382,41145.0,41144.0,0.13632608]
[1610119434462,0.08382,41145.0,41144.0,0.13658555]
[1610119436164,0.15642,41145.0,41144.0,0.13658555]
[1610119436765,0.08382,41145.0,41144.0,0.13658555]
[1610119436966,0.08382,41145.0,41144.0,0.00025947]
[1610119437165,0.08382,41145.0,41111.0,3.4151]
[1610119437665,0.0738,41145.0,41112.0,0.0002595]
[1610119437866,0.13632608,41151.0,41112.0,0.0002595]
[1610119438066,1.0,41152.0,41141.0,0.13632608]
[1610119438268,1.0,41144.0,41112.0,0.0002595]
[1610119438468,1.08502,41144.0,41142.0,0.0002595]
[1610119438669,1.08502,41144.0,41113.0,0.00025954]
[1610119438868,0.0732,41143.0,41113.0,0.00025954]
[1610119439066,0.0732,41143.0,41103.0,3.6397]
[1610119439266,0.0732,41143.0,41114.0,0.00025954]
[1610119439472,0.0732,41143.0,41104.0,0.02733271]
[1610119439968,0.0732,41143.0,41142.0,0.13632608]
[1610119440568,0.08502,41144.0,41142.0,0.13632608]
[1610119440569,0.08502,41144.0,41142.0,0.13658562]
[1610119440769,0.08502,41144.0,41143.0,0.00025952]
[1610119441571,0.15692,41144.0,41120.0,0.00025952]
[1610119441973,0.15692,41144.0,41143.0,0.00025729]
[1610119442171,0.15692,41144.0,41124.0,0.13632608]
[1610119442371,0.15692,41144.0,41143.0,0.00025731]
[1610119442672,0.08502,41144.0,41122.0,0.00025731]
[1610119443274,0.08502,41144.0,41123.0,0.00025732]
[1610119443674,3.9952,41158.0,41123.0,0.00025732]
[1610119444478,1.6569,41179.0,41123.0,0.00025732]
[1610119444678,2.803,41160.0,41123.0,0.00025732]
[1610119444874,0.0735,41152.0,41123.0,0.00025732]
[1610119445283,1.0,41149.0,41123.0,0.00025732]
[1610119446277,1.5,41159.0,41123.0,0.00025732]
[1610119446478,2.803,41160.0,41123.0,0.00025732]
[1610119446479,0.0733,41148.0,41123.0,0.00025732]
[1610119446679,0.3909,41147.0,41101.0,0.02648203]
[1610119446981,0.3909,41147.0,41124.0,0.00025739]
[1610119447180,3.2863,41134.0,41102.0,0.00025739]
[1610119447379,3.38165,41134.0,41125.0,0.00025741]
[1610119447878,3.38165,41134.0,41103.0,0.00025744]
[1610119448078,0.13632608,41104.0,41100.0,0.0262211]
[1610119448279,0.24338608,41104.0,41073.0,2.48701208]
[1610119448581,0.24338608,41104.0,41101.0,0.00025752]
[1610119448782,0.24338608,41104.0,41074.0,0.0255002]
[1610119448977,0.24338608,41104.0,41102.0,0.00025508]
[1610119449379,0.24338608,41104.0,41073.0,2.49082802]
[1610119449580,0.24338608,41104.0,41103.0,0.00025508]
[1610119449880,0.24338608,41104.0,41074.0,0.0254993]
[1610119450081,0.24338608,41104.0,41070.0,0.11827]
[1610119450082,0.10706,41104.0,41071.0,0.02549971]
[1610119450286,0.10706,41104.0,41075.0,0.00025508]
[1610119450480,0.13632608,41076.0,41075.0,0.00025508]
[1610119450684,0.13632608,41076.0,41072.0,0.02549982]
[1610119450882,0.13632608,41076.0,41072.0,0.00025508]
[1610119451083,0.13632608,41076.0,41073.0,0.02550234]
[1610119451482,0.13632608,41076.0,41073.0,0.0002551]
[1610119451684,0.13632608,41076.0,41071.0,0.02550392]
[1610119451882,0.13632608,41076.0,41074.0,0.00025512]
[1610119452283,0.13632608,41076.0,41072.0,0.00025514]
[1610119452483,0.11143,41083.0,41075.0,0.00025514]
[1610119452684,0.11143,41083.0,41060.0,2.49174085]
[1610119452685,0.11143,41083.0,41073.0,0.00025514]
[1610119452984,0.13632608,41077.0,41076.0,0.00025514]
[1610119453283,0.13632608,41077.0,41074.0,0.00025515]
[1610119453485,0.13632608,41077.0,41059.0,0.11195]
[1610119453486,0.13632608,41077.0,41062.0,0.00025515]
[1610119453884,0.13632608,41077.0,41075.0,0.00025515]
[1610119454086,0.13632608,41077.0,41063.0,0.00025515]
[1610119454384,0.13632608,41077.0,41061.0,2.51606743]
[1610119454586,0.11143,41083.0,41064.0,0.00025515]
[1610119454785,0.11143,41083.0,41062.0,0.00025515]
[1610119455088,0.11143,41083.0,41061.0,2.4899614]
[1610119455289,0.11143,41083.0,41067.0,3.0053]
[1610119455487,0.09254,41092.0,41067.0,3.0053]
[1610119455689,0.10706,41104.0,41082.0,0.13632608]
[1610119455890,0.13632608,41109.0,41083.0,0.00025508]
[1610119457589,1.0,41110.0,41083.0,0.00025508]
[1610119457788,1.0,41110.0,41072.0,0.00025508]
[1610119457988,1.0,41110.0,41084.0,0.00025508]
[1610119457989,1.11095,41110.0,41084.0,0.00025508]
[1610119458188,0.13632608,41089.0,41088.0,0.13632608]
[1610119458388,1.11095,41110.0,41088.0,0.13632608]
[1610119458389,0.07766,41094.0,41088.0,0.13632608]
[1610119458689,0.07766,41094.0,41088.0,0.63618116]
[1610119458889,0.07766,41094.0,41089.0,0.00025502]
[1610119459088,0.277,41151.0,41089.0,0.00025502]
[1610119459490,0.277,41151.0,41094.0,3.9943]
[1610119459690,0.277,41151.0,41094.0,4.08076]
[1610119459890,0.277,41151.0,41097.0,2.48676283]
[1610119460290,1.0,41140.0,41098.0,2.48657577]
[1610119460489,1.12103,41140.0,41098.0,2.48683066]
[1610119460688,1.12103,41140.0,41122.0,0.13632608]
[1610119461589,0.0724,41139.0,41122.0,0.13632608]
[1610119461789,0.0724,41139.0,41115.0,0.09794]
[1610119462292,0.12103,41140.0,41116.0,0.00025489]
[1610119462708,0.13632608,41135.0,41123.0,0.13632608]
[1610119463297,0.13632608,41135.0,41124.0,0.00025483]
[1610119463693,0.13632608,41135.0,41124.0,0.12143483]
[1610119464091,0.13632608,41135.0,41125.0,0.00025477]
[1610119464295,0.0739,41134.0,41125.0,0.00025477]
[1610119465096,0.13632608,41130.0,41125.0,0.00025477]
[1610119465294,1.5,41202.0,41125.0,0.00025477]
[1610119466294,0.4684,41206.0,41125.0,0.00025477]
[1610119467598,0.4684,41206.0,41141.0,0.13632608]
[1610119467796,1.5,41205.0,41141.0,0.13632608]
[1610119467995,0.2884,41197.0,41141.0,0.13632608]
[1610119468196,0.2884,41197.0,41142.0,0.00025477]
[1610119468395,0.2884,41197.0,41142.0,0.49495477]
[1610119468595,0.2884,41197.0,41142.0,0.00025477]
[1610119468798,0.2884,41197.0,41141.0,0.13632608]
[1610119468799,0.2884,41197.0,41149.0,3.3095]
[1610119469115,0.4684,41206.0,41149.0,3.3095]
[1610119469297,0.4684,41206.0,41150.0,0.00025473]
[1610119469596,0.4684,41206.0,41150.0,0.12657473]
[1610119470197,0.4684,41206.0,41153.0,0.13632608]
[1610119470399,0.0732,41190.0,41153.0,0.13632608]
[1610119470597,0.19617,41190.0,41150.0,0.12632]
[1610119471097,0.12297,41190.0,41150.0,0.12632]
[1610119472300,0.13632608,41165.0,41164.0,0.13632608]
[1610119472501,0.13632608,41165.0,41150.0,0.12632]
[1610119474201,0.12228,41168.0,41150.0,0.12632]
[1610119474601,0.12228,41168.0,41150.0,0.08972]
[1610119475702,0.0717,41167.0,41150.0,0.08972]
[1610119476405,0.08906,41180.0,41151.0,0.00025466]
[1610119476640,0.12297,41190.0,41151.0,0.00025466]
[1610119476807,0.13632608,41178.0,41175.0,0.13632608]
[1610119478805,0.13632608,41178.0,41167.0,4.0693]
[1610119478806,0.12297,41190.0,41167.0,4.0693]
[1610119479111,1.0723,41200.0,41167.0,4.0693]
[1610119479305,0.13632608,41178.0,41170.0,0.13632608]
[1610119480408,0.09894,41184.0,41170.0,0.13632608]
[1610119480705,0.073,41183.0,41172.0,3.5021]
[1610119481607,0.12765,41195.0,41159.0,0.11855]
[1610119481807,0.13632608,41178.0,41159.0,0.11855]
[1610119482208,0.13632608,41178.0,41160.0,0.0002546]
[1610119482607,0.0731,41177.0,41160.0,0.0002546]
[1610119482806,0.0731,41177.0,41159.0,0.11855]
[1610119483209,0.13632608,41178.0,41159.0,0.11855]
[1610119483707,0.09714,41182.0,41159.0,0.11855]
[1610119484007,0.09714,41182.0,41154.0,2.9114]
[1610119484206,0.09714,41182.0,41164.0,0.13632608]
[1610119484408,0.09714,41182.0,41154.0,2.9114]
[1610119486509,0.09714,41182.0,41160.0,0.13632608]
[1610119487209,0.12765,41195.0,41160.0,0.13632608]
[1610119487410,0.442,41218.0,41160.0,0.13632608]
[1610119487609,0.442,41218.0,41161.0,0.00025467]
[1610119487908,0.00029648,41217.0,41161.0,0.00025467]
[1610119488111,0.10856648,41217.0,41161.0,0.00025467]
[1610119488610,1.50029648,41216.0,41161.0,0.00025467]
[1610119488811,0.13632608,41162.0,41155.0,0.00025467]
[1610119489011,0.23502608,41162.0,41124.0,0.12118]
[1610119489211,0.23502608,41162.0,41125.0,3.7877]
[1610119489410,0.23502608,41162.0,41140.0,0.0002547]
[1610119489610,0.23502608,41162.0,41126.0,0.00025472]
[1610119489811,0.23502608,41162.0,41141.0,0.00025472]
[1610119490212,0.23502608,41162.0,41126.0,0.00025474]
[1610119490413,0.23502608,41162.0,41142.0,0.00025474]
[1610119490616,0.23502608,41162.0,41134.0,3.8934]
[1610119490814,0.0987,41162.0,41134.0,3.8934]
[1610119491114,0.0987,41162.0,41135.0,0.00025474]
[1610119491314,0.0987,41162.0,41161.0,0.13632608]
[1610119491516,0.13632608,41168.0,41161.0,0.13632608]
[1610119491817,0.13632608,41168.0,41161.0,0.13658085]
[1610119492016,0.13632608,41168.0,41162.0,0.00025477]
[1610119492816,0.0733,41167.0,41150.0,0.00025474]
[1610119493019,0.11446,41177.0,41163.0,0.00025474]
[1610119493318,0.11446,41177.0,41169.0,0.13632608]
[1610119493821,0.11446,41177.0,41170.0,0.00025472]
[1610119494217,1.0,41175.0,41170.0,0.00025472]
[1610119494419,1.0,41175.0,41149.0,0.09665]
[1610119494420,1.0,41175.0,41150.0,0.00025472]
[1610119495320,1.0,41175.0,41163.0,0.13632608]
[1610119495720,1.0,41175.0,41164.0,0.00025472]
[1610119496322,0.11446,41177.0,41164.0,0.00025472]
[1610119496522,0.11446,41177.0,41150.0,0.00025474]
[1610119497424,0.11446,41177.0,41156.0,0.13632608]
[1610119497824,0.11446,41177.0,41157.0,0.00025474]
[1610119498224,1.0,41188.0,41157.0,0.00025474]
[1610119499424,0.13632608,41158.0,41157.0,0.00025474]
[1610119499825,0.20842608,41158.0,41157.0,0.00025474]
[1610119500024,0.13632608,41158.0,41157.0,0.00025474]
[1610119500627,0.0736,41158.0,41157.0,0.00025474]
[1610119501032,0.0736,41158.0,41153.0,0.00025472]
[1610119501232,0.0736,41158.0,41157.0,0.00025472]
[1610119501430,0.0736,41158.0,41157.0,0.13632608]
[1610119501831,0.13632608,41168.0,41157.0,0.13658078]
[1610119502230,0.13632608,41168.0,41158.0,0.00025622]
[1610119502834,0.0734,41167.0,41158.0,0.00025622]
[1610119503434,0.08596,41170.0,41166.0,0.13632608]
[1610119503735,1.0,41173.0,41166.0,0.13632608]
[1610119503934,1.0,41173.0,41167.0,0.0002562]
[1610119504335,1.0,41199.0,41167.0,0.0002562]
[1610119505136,1.0,41199.0,41167.0,0.02602167]
[1610119505337,1.0,41199.0,41195.0,0.13632608]
[1610119505936,1.0,41199.0,41196.0,0.00025612]
[1610119506439,1.10827,41217.0,41196.0,0.00025612]
[1610119506738,0.00029633,41216.0,41196.0,0.00025612]
[1610119506938,1.10827,41217.0,41196.0,0.00025612]
[1610119507338,1.10827,41217.0,41207.0,0.13632608]
[1610119507538,1.10827,41217.0,41196.0,0.00025612]
[1610119507839,1.10827,41217.0,41208.0,0.00025607]
[1610119508041,1.10827,41217.0,41197.0,0.00025607]
[1610119508239,1.10827,41217.0,41177.0,0.09972]
[1610119508240,0.10827,41217.0,41209.0,0.00025607]
[1610119508542,4.2532,41237.0,41198.0,0.00025607]
[1610119508741,0.2817,41237.0,41198.0,0.00025607]
[1610119508942,0.2817,41237.0,41210.0,0.00025607]
[1610119509141,0.02269619,41236.0,41199.0,0.00025607]
[1610119509341,0.00029629,41236.0,41211.0,0.00025607]
[1610119509542,0.11241629,41236.0,41211.0,0.00025607]
[1610119509742,0.00029629,41235.0,41200.0,0.00025607]
[1610119509941,0.00029629,41235.0,41184.0,2.7669]
[1610119510144,0.00029629,41235.0,41185.0,0.00025609]
[1610119511349,0.00029629,41235.0,41203.0,0.13632608]
[1610119511551,0.10421629,41236.0,41203.0,0.13632608]
[1610119511949,0.00029625,41233.0,41203.0,0.13632608]
[1610119512452,0.10421629,41236.0,41204.0,0.00025605]
[1610119512851,0.00029625,41234.0,41204.0,0.00025605]
[1610119513052,0.07379625,41235.0,41185.0,0.00025605]
[1610119513251,0.00029625,41233.0,41184.0,2.7669]
[1610119513451,0.13632608,41190.0,41186.0,0.13632608]
[1610119513752,0.08644,41204.0,41186.0,0.13658215]
[1610119513952,0.08644,41204.0,41187.0,0.00025607]
[1610119514653,0.0727,41203.0,41187.0,0.00025607]
[1610119514855,0.08644,41204.0,41187.0,0.00025607]
[1610119515560,0.08644,41204.0,41202.0,0.13632608]
[1610119515772,0.08644,41204.0,41187.0,0.09399607]
[1610119515956,0.0728,41203.0,41187.0,0.09374]
[1610119516255,0.0728,41203.0,41188.0,0.00025602]
[1610119516555,0.08644,41204.0,41188.0,0.00025602]
[1610119517562,0.13632608,41200.0,41199.0,0.13632608]
[1610119517758,0.13632608,41200.0,41199.0,0.1365821]
[1610119519456,0.20882608,41200.0,41199.0,0.1365821]
[1610119519856,0.13632608,41200.0,41199.0,0.00025602]
[1610119520158,0.13632608,41200.0,41188.0,0.00025602]
[1610119520357,1.13632608,41200.0,41199.0,0.00025602]
[1610119520658,1.13632608,41200.0,41189.0,0.00025602]
[1610119521061,1.13632608,41200.0,41199.0,0.00025602]
[1610119521258,1.13632608,41200.0,41190.0,0.00025602]
[1610119521460,1.13632608,41200.0,41188.0,0.00025602]
[1610119521859,1.13632608,41200.0,41191.0,0.00025602]
[1610119522062,1.13632608,41200.0,41189.0,0.00025602]
[1610119522261,0.13632608,41200.0,41188.0,0.00025602]
[1610119522460,0.13632608,41200.0,41190.0,0.00025602]
[1610119522661,0.0724,41199.0,41190.0,0.00025602]
[1610119522861,0.0724,41199.0,41189.0,0.00025602]
[1610119523060,0.0724,41199.0,41188.0,0.00025602]
[1610119523264,0.13632608,41200.0,41190.0,0.00025602]
[1610119523463,0.08644,41204.0,41198.0,0.13632608]
[1610119523664,0.13632608,41205.0,41198.0,0.13632608]
[1610119524166,0.13632608,41205.0,41199.0,0.00025599]
[1610119524865,0.13632608,41205.0,41188.0,0.00025602]
[1610119525264,0.13632608,41205.0,41200.0,0.00025602]
[1610119525465,0.13632608,41205.0,41189.0,0.00025602]
[1610119525665,0.13632608,41205.0,41201.0,0.00025602]
[1610119526066,0.13632608,41205.0,41190.0,0.00025604]
[1610119526366,0.13632608,41205.0,41202.0,0.00025604]
[1610119526567,0.13632608,41205.0,41188.0,0.02601453]
[1610119526866,0.072,41204.0,41203.0,0.00025604]
[1610119527068,0.072,41204.0,41189.0,0.00025604]
[1610119527366,0.13632608,41205.0,41188.0,0.02601451]
[1610119527566,0.13632608,41199.0,41197.0,0.13632608]
[1610119527767,0.13632608,41199.0,41189.0,0.00025605]
[1610119528067,0.13632608,41199.0,41188.0,0.02601454]
[1610119528268,0.13632608,41199.0,41190.0,0.00025605]
[1610119528467,0.0719,41198.0,41190.0,0.00025605]
[1610119528670,0.0719,41198.0,41189.0,0.00025605]
[1610119528968,0.0719,41198.0,41188.0,0.02601454]
[1610119529267,0.13632608,41199.0,41190.0,0.00025605]
[1610119529467,0.13632608,41199.0,41198.0,0.13632608]
[1610119529967,0.13632608,41199.0,41198.0,0.1623427]
[1610119530168,0.20892608,41199.0,41198.0,0.1623427]
[1610119530569,0.13632608,41199.0,41198.0,0.1623427]
[1610119531168,0.09153,41209.0,41198.0,0.1623427]
[1610119531368,1.0,41225.0,41198.0,0.1623427]
[1610119531568,1.073,41225.0,41204.0,0.13632608]
[1610119531969,1.0,41225.0,41205.0,0.0260141]
[1610119532276,1.0,41223.0,41205.0,0.0260141]